bitfinex-derivatives/quotes_SOLF0:USTF0_20250817
["timestamp","ask_amount","ask_price","bid_price","bid_amount"]
[1755430960179,3.0,193.39,193.31,2.78]
[1755430960381,3.0,193.37,193.31,2.78]
[1755430960580,3.0,193.35,193.31,2.78]
[1755430961779,5.84964178,193.44,193.31,2.78]
[1755430961986,3.0,193.42,193.31,2.78]
[1755430962184,3.0,193.4,193.31,2.78]
[1755430962486,3.0,193.38,193.31,2.78]
[1755430962684,3.0,193.36,193.31,2.78]
[1755430967189,3.0,193.35,193.31,2.78]
[1755430967390,3.0,193.35,193.3,126.0]
[1755430967990,3.0,193.35,193.31,2.97]
[1755430968383,3.0,193.35,193.3,126.0]
[1755430968584,3.0,193.35,193.32,2.97]
[1755430973992,3.0,193.35,193.33,2.97]
[1755430974289,4.83815241,193.34,193.3,126.0]
[1755430974490,2.87,193.33,193.3,126.0]
[1755430974883,2.87,193.33,193.24,2.97]
[1755430975079,2.87,193.31,193.24,2.97]
[1755430976994,2.87,193.29,193.24,2.97]
[1755430980386,2.87,193.29,193.22,2.97]
[1755430980689,2.87,193.27,193.2,2.97]
[1755430984788,2.87,193.27,193.18,125.74]
[1755430984992,2.87,193.27,193.19,3.87005043]
[1755430985197,2.87,193.27,193.2,2.97]
[1755430993106,2.87,193.41,193.2,2.97]
[1755430993306,2.87,193.39,193.2,2.97]
[1755430993498,2.87,193.37,193.2,2.97]
[1755430993698,2.87,193.35,193.2,2.97]
[1755430998599,2.87,193.35,193.21,125.72]
[1755430998797,2.87,193.35,193.22,2.84]
[1755431022118,2.94,193.33,193.24,2.84]
[1755431035320,2.85,193.31,193.24,2.84]
[1755431065252,2.85,193.31,193.24,2.78]
[1755431091973,2.88,193.42,193.24,2.78]
[1755431092276,2.88,193.4,193.24,2.78]
[1755431092575,2.88,193.38,193.24,2.78]
[1755431092776,2.88,193.36,193.24,2.78]
[1755431093677,2.88,193.36,193.25,125.58]
[1755431093875,2.88,193.36,193.26,2.81]
[1755431157440,2.88,193.36,193.27,125.44]
[1755431157642,2.88,193.36,193.28,2.88]
[1755431252295,2.88,193.36,193.29,125.22]
[1755431252496,2.88,193.36,193.3,2.81]
[1755431299740,2.88,193.36,193.31,125.12]
[1755431300739,2.88,193.36,193.31,127.96]
[1755431301139,2.88,193.36,193.32,2.84]
[1755431303044,2.88,193.36,193.31,125.12]
[1755431303545,2.88,193.36,193.31,127.96]
[1755431303747,2.88,193.36,193.32,2.84]
[1755431306549,2.88,193.36,193.31,125.12]
[1755431306937,2.95,193.43,193.31,125.12]
[1755431307146,2.95,193.41,193.32,2.84]
[1755431307354,2.95,193.51,193.32,2.84]
[1755431307645,2.95,193.49,193.32,2.84]
[1755431307950,2.95,193.47,193.32,2.84]
[1755431308149,2.95,193.45,193.32,2.84]
[1755431309346,2.95,193.45,193.34,2.84]
[1755431309552,2.95,193.45,193.26,83.20262828]
[1755431309553,2.95,193.45,193.35,125.28]
[1755431309854,2.95,193.45,193.36,2.84]
[1755431315444,2.95,193.45,193.37,125.28]
[1755431315649,2.95,193.45,193.37,128.12]
[1755431315850,2.95,193.45,193.31,8.65082987]
[1755431316048,2.95,193.45,193.36,2.84]
[1755431324366,2.95,193.45,193.42,4.32109897]
[1755431324564,2.95,193.45,193.42,7.16109897]
[1755431328883,2.95,193.45,193.42,4.32109897]
[1755431329486,2.95,193.45,193.42,7.09109897]
[1755431330583,2.95,193.45,193.41,2.77]
[1755431330882,2.95,193.45,193.42,4.32027086]
[1755431331582,2.95,193.45,193.41,4.32027086]
[1755431331977,2.95,193.45,193.39,2.77]
[1755431332774,2.95,193.45,193.38,2.77]
[1755431343284,2.95,193.45,193.37,2.77]
[1755431346385,2.92,193.43,193.37,2.77]
[1755431359595,3.06,193.41,193.37,2.77]
[1755431361693,3.06,193.49,193.37,2.77]
[1755431361897,3.06,193.47,193.37,2.77]
[1755431362096,3.06,193.45,193.37,2.77]
[1755431362301,3.06,193.43,193.37,2.77]
[1755431369804,3.85016013,193.42,193.37,2.77]
[1755431370004,3.06,193.43,193.37,2.77]
[1755431373607,3.85105816,193.42,193.37,2.77]
[1755431373907,3.06,193.43,193.37,2.77]
[1755431374105,3.85105816,193.42,193.37,2.77]
[1755431374307,3.06,193.41,193.37,2.77]
[1755431375613,3.06,193.41,193.28,3.03]
[1755431375912,3.06,193.39,193.3,3.03]
[1755431381414,3.06,193.39,193.32,3.03]
[1755431393036,3.06,193.39,193.32,128.15]
[1755431393227,3.06,193.39,193.33,2.97]
[1755431412851,5.84964178,193.46,193.33,2.97]
[1755431413048,2.91,193.41,193.33,2.97]
[1755431422049,2.91,193.41,193.35,2.92]
[1755431423555,2.91,193.41,193.31,125.08]
[1755431423755,2.91,193.41,193.32,2.92]
[1755431428561,3.83804829,193.4,193.32,2.92]
[1755431428758,3.83837783,193.39,193.32,2.92]
[1755431428957,2.85,193.38,193.32,2.92]
[1755431436067,3.83817735,193.37,193.32,2.92]
[1755431436368,8.77446267,193.47,193.32,2.92]
[1755431436369,2.85,193.36,193.32,2.92]
[1755431451781,2.92,193.45,193.27,2.99]
[1755431451981,2.92,193.43,193.28,125.08]
[1755431452183,2.92,193.41,193.29,2.99]
[1755431452386,2.92,193.39,193.29,2.99]
[1755431466291,2.92,193.37,193.29,2.99]
[1755431466493,4.80507406,193.36,193.29,2.99]
[1755431466794,2.92,193.35,193.29,2.99]
[1755431477202,5.84964178,193.44,193.29,2.99]
[1755431477414,2.92,193.45,193.33,8.65646107]
[1755431477611,4.80894189,193.44,193.35,2.99]
[1755431477903,2.84,193.5,193.37,2.99]
[1755431478107,2.84,193.48,193.37,2.99]
[1755431479810,347.38,193.6,193.38,5.26459954]
[1755431480000,6.0484269,193.59,193.4,2.99]
[1755431480199,3.69434597,193.58,193.42,2.99]
[1755431480410,3.69434597,193.58,193.34,125.04]
[1755431480411,3.69434597,193.57,193.44,2.99]
[1755431480613,3.69434597,193.57,193.34,125.04]
[1755431480614,3.69434597,193.56,193.46,2.99]
[1755431480809,8.66969462,193.55,193.47,5.25976434]
[1755431481113,8.66969462,193.54,193.48,5.25976434]
[1755431481311,8.66969462,193.53,193.49,5.25976434]
[1755431481511,4.97534865,193.52,193.5,5.25976434]
[1755431481713,472.64,193.6,193.51,5.25976434]
[1755431481910,2.84,193.58,193.52,5.25976434]
[1755431482111,2.84,193.56,193.53,0.32137694]
[1755431482307,8.6610644,193.55,193.46,2.99]
[1755431482506,8.6610644,193.54,193.46,2.99]
[1755431482707,8.6610644,193.53,193.46,2.99]
[1755431482908,4.97192388,193.52,193.46,2.99]
[1755431483110,4.97192388,193.51,193.46,2.99]
[1755431483307,4.97192388,193.5,193.46,2.99]
[1755431483511,472.64,193.6,193.46,2.99]
[1755431483713,3.68542353,193.59,193.46,2.99]
[1755431483918,8.65197102,193.58,193.46,2.99]
[1755431484216,8.65197102,193.57,193.46,2.99]
[1755431484411,8.65011067,193.56,193.46,2.99]
[1755431484713,8.65011067,193.55,193.46,2.99]
[1755431484912,8.65011067,193.54,193.46,2.99]
[1755431485115,4.96468714,193.53,193.46,2.99]
[1755431485313,4.96280281,193.52,193.46,2.99]
[1755431485512,4.96280281,193.51,193.46,2.99]
[1755431485715,125.22,193.58,193.46,2.99]
[1755431485906,8.64501831,193.57,193.46,2.99]
[1755431486106,8.64501831,193.56,193.46,2.99]
[1755431486307,8.64501831,193.55,193.46,2.99]
[1755431486513,8.64501831,193.54,193.46,2.99]
[1755431486712,4.96251294,193.53,193.46,2.99]
[1755431487017,4.96251294,193.52,193.46,2.99]
[1755431487217,4.96251294,193.51,193.46,2.99]
[1755431487513,347.38,193.6,193.46,2.99]
[1755431487717,133.95091957,193.59,193.46,2.99]
[1755431487908,8.73091957,193.58,193.46,2.99]
[1755431488109,8.73091957,193.57,193.46,2.99]
[1755431488311,8.73091957,193.56,193.46,2.99]
[1755431488509,8.73091957,193.55,193.46,2.99]
[1755431488709,5.05068446,193.54,193.46,2.99]
[1755431488905,5.05068446,193.53,193.46,2.99]
[1755431489215,5.05068446,193.52,193.46,2.99]
[1755431489418,125.18,193.58,193.46,2.99]
[1755431489614,8.72558113,193.57,193.46,2.99]
[1755431489814,5.04761988,193.56,193.46,2.99]
[1755431490114,5.04761988,193.55,193.46,2.99]
[1755431490315,5.04761988,193.54,193.46,2.99]
[1755431490509,5.04761988,193.53,193.46,2.99]
[1755431490710,5.04761988,193.52,193.46,2.99]
[1755431490915,125.16,193.58,193.46,2.99]
[1755431491221,8.72318405,193.57,193.46,2.99]
[1755431491517,5.04621791,193.56,193.46,2.99]
[1755431491708,5.04621791,193.55,193.46,2.99]
[1755431491909,5.04621791,193.54,193.46,2.99]
[1755431492110,5.04621791,193.53,193.46,2.99]
[1755431492312,125.16,193.58,193.46,2.99]
[1755431492520,8.71927882,193.57,193.46,2.99]
[1755431492706,5.04392924,193.56,193.46,2.99]
[1755431492908,5.04360671,193.55,193.46,2.99]
[1755431493110,5.04360671,193.54,193.46,2.99]
[1755431493312,125.16,193.6,193.46,2.99]
[1755431493613,8.71662118,193.59,193.46,2.99]
[1755431493809,5.04251768,193.58,193.46,2.99]
[1755431494117,5.04251768,193.57,193.46,2.99]
[1755431494319,5.04251768,193.56,193.46,2.99]
[1755431494620,5.04251768,193.55,193.46,2.99]
[1755431494811,5.04251768,193.54,193.46,2.99]
[1755431495012,125.16,193.6,193.46,2.99]
[1755431495216,8.71430298,193.59,193.46,2.99]
[1755431495418,5.04075941,193.58,193.46,2.99]
[1755431495610,5.04075941,193.57,193.46,2.99]
[1755431495920,5.04075941,193.56,193.46,2.99]
[1755431496113,5.04075941,193.55,193.46,2.99]
[1755431496418,5.04075941,193.54,193.46,2.99]
[1755431496610,5.04075941,193.53,193.46,2.99]
[1755431496809,125.24,193.59,193.46,2.99]
[1755431497013,5.09294029,193.58,193.46,2.99]
[1755431497314,5.09294029,193.57,193.46,2.99]
[1755431497512,5.09294029,193.56,193.46,2.99]
[1755431497820,5.09294029,193.55,193.46,2.99]
[1755431498019,5.09294029,193.54,193.46,2.99]
[1755431498218,5.09294029,193.53,193.46,2.99]
[1755431498419,125.22,193.59,193.46,2.99]
[1755431498622,5.09200434,193.58,193.46,2.99]
[1755431498914,5.09200434,193.57,193.46,2.99]
[1755431499120,5.09200434,193.56,193.46,2.99]
[1755431499421,5.09200434,193.55,193.46,2.99]
[1755431499608,5.09200434,193.54,193.46,2.99]
[1755431499813,5.09200434,193.53,193.46,2.99]
[1755431500012,125.46,193.59,193.46,2.99]
[1755431500214,5.0915069,193.58,193.46,2.99]
[1755431500415,5.0915069,193.57,193.46,2.99]
[1755431500619,5.0915069,193.56,193.46,2.99]
[1755431500822,5.0915069,193.55,193.46,2.99]
[1755431501017,5.0915069,193.54,193.46,2.99]
[1755431501318,5.0915069,193.53,193.46,2.99]
[1755431501509,125.46,193.59,193.46,2.99]
[1755431501707,5.09165805,193.58,193.46,2.99]
[1755431501914,5.09165805,193.57,193.46,2.99]
[1755431502110,5.09154916,193.56,193.46,2.99]
[1755431502318,5.09154916,193.55,193.46,2.99]
[1755431502521,5.09154916,193.54,193.46,2.99]
[1755431502714,5.09154916,193.53,193.46,2.99]
[1755431502914,5.09154916,193.52,193.46,2.99]
[1755431503110,125.5,193.59,193.46,2.99]
[1755431503317,5.09151021,193.58,193.46,2.99]
[1755431503517,5.09151021,193.57,193.46,2.99]
[1755431503718,5.09151021,193.56,193.46,2.99]
[1755431503916,5.09151021,193.55,193.46,2.99]
[1755431504116,5.09151021,193.54,193.46,2.99]
[1755431504320,5.09151021,193.53,193.46,2.99]
[1755431504518,5.09151021,193.52,193.46,2.99]
[1755431504715,323.0,193.75,193.46,2.99]
[1755431505020,134.18595869,193.93,193.46,2.99]
[1755431505021,5.09138917,193.62,193.46,2.99]
[1755431505227,125.8,193.69,193.46,2.99]
[1755431505424,4.42175966,193.68,193.46,2.99]
[1755431505622,125.8,193.69,193.47,4.80403242]
[1755431505819,125.8,193.69,193.48,4.80403242]
[1755431506017,8.07772644,193.68,193.5,2.99]
[1755431506221,3.65641107,193.67,193.52,2.99]
[1755431506414,3.65641107,193.66,193.54,2.99]
[1755431506619,125.8,193.69,193.56,2.99]
[1755431506925,7.74909639,193.68,193.58,2.99]
[1755431507122,3.65559552,193.67,193.59,4.80403242]
[1755431507321,3.65559552,193.66,193.6,4.80403242]
[1755431507527,125.8,193.69,193.61,4.80403242]
[1755431507722,3.65509541,193.68,193.62,4.80403242]
[1755431508023,3.65509541,193.67,193.63,4.80403242]
[1755431508225,3.65509541,193.66,193.64,4.80403242]
[1755431508426,125.8,193.69,193.65,4.80403242]
[1755431508622,3.65453538,193.68,193.66,4.80403242]
[1755431508825,125.8,193.69,193.67,4.80403242]
[1755431509023,125.8,193.69,193.68,4.80403242]
[1755431509230,129.45453538,193.69,193.68,4.80403242]
[1755431510426,3.65453538,193.69,193.68,4.80403242]
[1755431510628,129.47453538,193.69,193.68,4.80403242]
[1755431511429,129.99453538,193.69,193.68,4.80182772]
[1755431511732,129.99453538,193.69,193.68,4.80185075]
[1755431515029,129.99453538,193.69,193.63,2.77]
[1755431515217,3.65453538,193.68,193.64,4.80489581]
[1755431515422,3.65453538,193.68,193.65,4.80489581]
[1755431515617,3.65453538,193.68,193.66,4.80489581]
[1755431515821,3.65453538,193.68,193.67,4.80489581]
[1755431518426,4.17453538,193.68,193.67,4.80489581]
[1755431519326,4.17453538,193.68,193.64,2.77]
[1755431519530,3.65453538,193.67,193.65,2.77]
[1755431519725,3.65453538,193.66,193.65,2.77]
[1755431520733,3.65453538,193.68,193.65,2.77]
[1755431522437,129.35453538,193.67,193.65,2.77]
[1755431522629,3.65453538,193.66,193.65,2.77]
[1755431523132,125.68,193.66,193.65,2.77]
[1755431523335,129.33453538,193.66,193.65,2.77]
[1755431524429,129.31453538,193.66,193.65,2.77]
[1755431524935,3.65453538,193.66,193.65,2.77]
[1755431525244,125.64,193.66,193.65,2.77]
[1755431525435,129.29453538,193.66,193.65,2.77]
[1755431525838,3.65453538,193.66,193.65,2.77]
[1755431526134,125.62,193.66,193.65,2.77]
[1755431526337,129.27453538,193.66,193.65,2.77]
[1755431527537,3.65453538,193.66,193.65,2.77]
[1755431527729,129.27453538,193.66,193.65,2.77]
[1755431528831,129.25453538,193.66,193.65,2.77]
[1755431529638,129.25453538,193.66,193.45,2.77]
[1755431529842,3.65453538,193.65,193.45,2.77]
[1755431530138,125.58,193.64,193.45,2.77]
[1755431532531,15.52,193.71,193.45,8.65646107]
[1755431532728,129.21022824,193.7,193.46,2.77]
[1755431532933,3.67022824,193.69,193.46,2.77]
[1755431533133,3.67022824,193.68,193.46,2.77]
[1755431533333,3.67022824,193.67,193.46,2.77]
[1755431533640,3.67022824,193.66,193.46,2.77]
[1755431533843,129.19022824,193.65,193.46,2.77]
[1755431534037,3.67022824,193.64,193.46,2.77]
[1755431534243,125.52,193.63,193.46,2.77]
[1755431535844,15.52,193.71,193.46,2.77]
[1755431536041,129.17424735,193.7,193.46,2.77]
[1755431536239,3.67424735,193.69,193.46,8.65646107]
[1755431536441,3.67424735,193.68,193.47,2.77]
[1755431536639,3.67424735,193.67,193.47,2.77]
[1755431536943,3.67424735,193.66,193.47,2.77]
[1755431537144,3.67424735,193.65,193.47,2.77]
[1755431537441,3.67424735,193.64,193.47,2.77]
[1755431537642,125.5,193.7,193.47,2.77]
[1755431537843,3.67559867,193.69,193.47,2.77]
[1755431538045,3.67559867,193.68,193.47,2.77]
[1755431538239,3.67559867,193.67,193.47,2.77]
[1755431538439,3.67559867,193.66,193.47,2.77]
[1755431538745,3.67559867,193.65,193.47,2.77]
[1755431538947,3.67559867,193.64,193.47,2.77]
[1755431539143,125.5,193.7,193.47,2.77]
[1755431539343,3.67625616,193.69,193.47,2.77]
[1755431539542,3.67625616,193.68,193.47,2.77]
[1755431539742,3.67625616,193.67,193.47,2.77]
[1755431539943,3.67625616,193.66,193.47,2.77]
[1755431540251,3.67625616,193.65,193.47,2.77]
[1755431540446,3.67625616,193.64,193.47,2.77]
[1755431540741,125.5,193.7,193.47,2.77]
[1755431540941,129.13752469,193.69,193.47,2.77]
[1755431541134,3.67752469,193.68,193.47,2.77]
[1755431541338,3.67752469,193.67,193.47,2.77]
[1755431541547,3.67752469,193.66,193.47,2.77]
[1755431541746,3.67752469,193.65,193.47,2.77]
[1755431541953,3.67752469,193.64,193.47,2.77]
[1755431542247,3.67752469,193.63,193.47,2.77]
[1755431542446,15.52,193.7,193.47,8.65646107]
[1755431542746,129.11918864,193.69,193.48,2.91]
[1755431542941,3.67918864,193.68,193.48,2.91]
[1755431543141,3.67918864,193.67,193.48,2.91]
[1755431543334,3.67918864,193.66,193.48,2.91]
[1755431543534,3.67918864,193.65,193.48,2.91]
[1755431543735,3.67918864,193.64,193.48,2.91]
[1755431543942,3.67918864,193.63,193.48,2.91]
[1755431544247,125.42,193.66,193.48,2.91]
[1755431544441,3.68038478,193.65,193.48,2.91]
[1755431544641,3.68038478,193.64,193.48,2.91]
[1755431544842,3.68038478,193.63,193.48,2.91]
[1755431545045,125.42,193.66,193.48,2.91]
[1755431545247,3.68143467,193.65,193.48,2.91]
[1755431545443,3.68143467,193.64,193.48,2.91]
[1755431545748,3.68143467,193.63,193.48,2.91]
[1755431545937,3.68143467,193.62,193.48,2.91]
[1755431546137,125.42,193.66,193.48,2.91]
[1755431546336,3.68296028,193.65,193.48,11.56646107]
[1755431546546,3.68296028,193.64,193.49,2.91]
[1755431546734,125.42,193.66,193.49,2.91]
[1755431546735,3.68296028,193.63,193.49,2.91]
[1755431546938,3.68296028,193.62,193.49,2.91]
[1755431547136,125.42,193.66,193.49,2.91]
[1755431547446,3.68448068,193.65,193.49,2.91]
[1755431547650,3.68448068,193.64,193.49,2.91]
[1755431547848,3.68448068,193.63,193.49,2.91]
[1755431548048,3.68448068,193.62,193.49,2.91]
[1755431548240,125.42,193.66,193.49,2.91]
[1755431548442,3.68901175,193.65,193.5,2.91]
[1755431548640,3.68901175,193.64,193.5,2.91]
[1755431548845,3.68901175,193.63,193.5,2.91]
[1755431549144,3.68901175,193.62,193.5,2.91]
[1755431549350,3.68901175,193.61,193.5,8.65646107]
[1755431549648,3.68901175,193.6,193.51,2.91]
[1755431549847,125.42,193.66,193.51,2.91]
[1755431550045,3.69350705,193.65,193.51,2.91]
[1755431550245,3.69350705,193.64,193.51,2.91]
[1755431550445,3.69350705,193.63,193.51,2.91]
[1755431550645,3.69350705,193.62,193.51,2.91]
[1755431550950,3.69350705,193.61,193.51,2.91]
[1755431551150,3.69350705,193.6,193.51,2.91]
[1755431551349,125.42,193.66,193.51,2.91]
[1755431551646,3.6943139,193.65,193.51,2.91]
[1755431551844,3.6943139,193.64,193.51,2.91]
[1755431552148,7.76617302,193.63,193.51,2.91]
[1755431552349,7.76617302,193.62,193.51,2.91]
[1755431552645,3.6943139,193.61,193.51,2.91]
[1755431552851,3.6943139,193.6,193.51,2.91]
[1755431553052,125.42,193.66,193.51,2.91]
[1755431553248,7.76645624,193.65,193.51,2.91]
[1755431553450,7.76645624,193.64,193.51,2.91]
[1755431553652,7.76645624,193.63,193.51,2.91]
[1755431553851,7.76645624,193.62,193.51,2.91]
[1755431554047,3.69444551,193.61,193.51,2.91]
[1755431554352,3.69444551,193.6,193.51,2.91]
[1755431554549,125.3,193.66,193.51,2.91]
[1755431554748,7.76687364,193.65,193.51,2.91]
[1755431554952,7.76687364,193.64,193.51,2.91]
[1755431555252,7.76687364,193.63,193.51,2.91]
[1755431555449,7.76687364,193.62,193.51,2.91]
[1755431555647,7.76687364,193.61,193.51,2.91]
[1755431555845,3.6947047,193.6,193.51,2.91]
[1755431556044,125.3,193.66,193.51,2.91]
[1755431556245,7.82728562,193.65,193.51,2.91]
[1755431556441,7.82728562,193.64,193.51,2.91]
[1755431556646,7.82758003,193.63,193.51,2.91]
[1755431556855,7.82758003,193.62,193.51,2.91]
[1755431557047,7.82758003,193.61,193.51,2.91]
[1755431557253,3.69475967,193.6,193.51,2.91]
[1755431557553,125.3,193.66,193.51,2.91]
[1755431557753,7.82848921,193.65,193.51,2.91]
[1755431557955,7.82848921,193.64,193.51,2.91]
[1755431558155,7.82848921,193.63,193.51,2.91]
[1755431558356,7.82862695,193.62,193.51,2.91]
[1755431558654,7.82862695,193.61,193.51,2.91]
[1755431558854,3.69532746,193.6,193.51,2.91]
[1755431559050,125.26,193.66,193.51,2.91]
[1755431559251,7.82893353,193.65,193.51,2.91]
[1755431559452,7.82893353,193.64,193.51,2.91]
[1755431559651,7.82893353,193.63,193.51,2.91]
[1755431559851,7.82893353,193.62,193.51,2.91]
[1755431560156,7.82893353,193.61,193.51,2.91]
[1755431560358,3.69545051,193.6,193.51,2.91]
[1755431560555,125.26,193.66,193.51,2.91]
[1755431560756,7.82989007,193.65,193.51,2.91]
[1755431561051,7.82989007,193.64,193.51,2.91]
[1755431561258,7.82989007,193.63,193.51,2.91]
[1755431561459,7.82989007,193.62,193.51,2.91]
[1755431561657,7.82989007,193.61,193.51,2.91]
[1755431561958,125.26,193.66,193.51,2.91]
[1755431561959,3.69598915,193.6,193.51,2.91]
[1755431562161,125.26,193.66,193.51,2.91]
[1755431562353,7.82989111,193.65,193.51,2.91]
[1755431562559,7.82989111,193.64,193.51,2.91]
[1755431562764,7.82989111,193.63,193.51,2.91]
[1755431562960,7.82989111,193.62,193.51,2.91]
[1755431563161,7.82989254,193.61,193.51,2.91]
[1755431563362,3.69598957,193.6,193.51,2.91]
[1755431563562,125.26,193.66,193.51,2.91]
[1755431563863,7.82989485,193.65,193.51,2.91]
[1755431564162,7.82989485,193.64,193.51,2.91]
[1755431564364,7.82989485,193.63,193.51,2.91]
[1755431564663,7.82989485,193.62,193.51,2.91]
[1755431564866,7.82989485,193.61,193.51,2.91]
[1755431565059,3.69599122,193.6,193.51,2.91]
[1755431565260,3.69599122,193.59,193.51,2.91]
[1755431565462,125.26,193.66,193.51,2.91]
[1755431565658,7.83930956,193.65,193.51,2.91]
[1755431565858,7.83930956,193.64,193.51,2.91]
[1755431566058,7.83930956,193.63,193.51,2.91]
[1755431566259,7.83930956,193.62,193.51,2.91]
[1755431566460,7.83930956,193.61,193.51,2.91]
[1755431566662,3.70540424,193.6,193.51,2.91]
[1755431566864,125.18,193.66,193.51,2.91]
[1755431566865,3.70540424,193.59,193.51,2.91]
[1755431567064,125.18,193.66,193.51,2.91]
[1755431567263,7.83930644,193.65,193.51,2.91]
[1755431567460,7.83930644,193.64,193.51,2.91]
[1755431567666,3.70540258,193.63,193.53,8.65646107]
[1755431567869,3.70540258,193.62,193.54,2.82]
[1755431568067,180.58036126,193.7,193.54,2.82]
[1755431568268,7.83791691,193.69,193.54,2.82]
[1755431568469,7.83791691,193.68,193.54,2.82]
[1755431568662,7.83791691,193.67,193.54,2.82]
[1755431568857,7.83791691,193.66,193.54,2.82]
[1755431569062,4.13321928,193.65,193.56,5.75051502]
[1755431569268,180.64036126,193.7,193.57,2.82]
[1755431569469,4.08951604,193.69,193.57,2.82]
[1755431569769,4.08951604,193.68,193.57,2.82]
[1755431569969,4.08951604,193.67,193.57,2.82]
[1755431570169,180.64036126,193.7,193.57,2.82]
[1755431570170,4.08951604,193.66,193.57,2.82]
[1755431570376,4.08951604,193.65,193.57,2.82]
[1755431570577,180.64036126,193.7,193.57,2.82]
[1755431570777,4.08892926,193.69,193.57,2.82]
[1755431570973,4.08892926,193.68,193.57,2.82]
[1755431571173,4.08892926,193.67,193.57,2.82]
[1755431571374,4.08892926,193.66,193.57,2.82]
[1755431571579,4.08892926,193.65,193.57,2.82]
[1755431571775,4.08856599,193.64,193.57,2.82]
[1755431572080,180.64036126,193.7,193.57,2.82]
[1755431572281,4.08856599,193.69,193.57,2.82]
[1755431572480,4.08856599,193.68,193.57,2.82]
[1755431572676,4.08856599,193.67,193.57,2.82]
[1755431572875,4.08856599,193.66,193.57,2.82]
[1755431573077,4.08856599,193.65,193.57,2.82]
[1755431573276,180.64036126,193.7,193.57,2.82]
[1755431573475,4.08803149,193.69,193.57,2.82]
[1755431573680,4.08803149,193.68,193.57,2.82]
[1755431573880,4.08803149,193.67,193.57,2.82]
[1755431574081,4.08803149,193.66,193.57,2.82]
[1755431574284,180.64036126,193.7,193.57,2.82]
[1755431574482,4.08797715,193.69,193.57,2.82]
[1755431574678,180.64036126,193.7,193.57,2.82]
[1755431574883,4.08776183,193.69,193.57,2.82]
[1755431575180,4.08776183,193.68,193.57,2.82]
[1755431575480,4.08776183,193.67,193.57,2.82]
[1755431575676,4.08776183,193.66,193.57,2.82]
[1755431575885,4.08776183,193.65,193.57,2.82]
[1755431576079,4.08776183,193.64,193.57,2.82]
[1755431576282,125.18,193.68,193.57,2.82]
[1755431576478,4.08745369,193.67,193.57,2.82]
[1755431576785,4.08745369,193.66,193.57,2.82]
[1755431577085,4.08745369,193.65,193.57,2.82]
[1755431577285,180.60036126,193.7,193.57,2.82]
[1755431577478,4.08677426,193.69,193.57,2.82]
[1755431577678,4.08677426,193.68,193.57,2.82]
[1755431577880,4.08677426,193.67,193.57,2.82]
[1755431578084,4.08677426,193.66,193.57,2.82]
[1755431578385,180.60036126,193.7,193.57,2.82]
[1755431578578,4.08637568,193.69,193.57,2.82]
[1755431578774,4.08637568,193.68,193.57,2.82]
[1755431578978,4.08637568,193.67,193.57,2.82]
[1755431579280,4.08637568,193.66,193.57,2.82]
[1755431579579,4.08637568,193.65,193.57,2.82]